fUST/lending_fUST_20250525
["ID","MTS","AMOUNT","RATE_DAILY","PERIOD"]
[362276131,1748143846789,-647.16,0.00019178,2]
[362276132,1748143846798,-430.0,0.00019178,2]
[362276133,1748143846808,-430.0,0.00019178,2]
[362276134,1748143846817,-487.64,0.00019178,2]
[362276135,1748143846827,-471.93,0.00019178,2]
[362276136,1748143846836,-442.43467982,0.00019178,2]
[362276137,1748143846846,-501.22688919,0.00019178,2]
[362276138,1748143846855,-442.18629898,0.00019178,2]
[362276139,1748143846865,-1983.66,0.00019178,2]
[362276140,1748143846875,-430.0,0.00019178,2]
[362276141,1748143846884,-430.0,0.00019178,2]
[362276142,1748143846894,-430.0,0.00019178,2]
[362276143,1748143846903,-781.99,0.00019178,2]
[362276144,1748143846912,-430.0,0.00019178,2]
[362276145,1748143846922,-430.0,0.00019178,2]
[362276146,1748143846931,-430.0,0.00019178,2]
[362276147,1748143846941,-430.0,0.00019178,2]
[362276148,1748143846952,-430.0,0.00019178,2]
[362276149,1748143846964,-649.55,0.00019178,2]
[362276150,1748143846973,-430.0,0.00019178,2]
[362276151,1748143846983,-430.0,0.00019178,2]
[362276152,1748143846994,-208.417094,0.00019178,2]
[362276153,1748143847003,-430.0,0.00019178,2]
[362276154,1748143847012,-430.0,0.00019178,2]
[362276155,1748143847022,-430.0,0.00019178,2]
[362276156,1748143847031,-1572.35,0.00019178,2]
[362276157,1748143847041,-430.0,0.00019178,2]
[362276158,1748143847051,-450.18,0.00019178,2]
[362276159,1748143847067,-1297.24,0.00019178,2]
[362276160,1748143847076,-467.58668137,0.00019178,2]
[362276161,1748143847087,-430.0,0.00019178,2]
[362276162,1748143847099,-1012.33,0.00019178,2]
[362276163,1748143847111,-430.0,0.00019178,2]
[362276164,1748143847122,-1182.31,0.00019178,2]
[362276165,1748143847132,-438.93514667,0.00019178,2]
[362276166,1748143847143,-446.14314775,0.00019178,2]
[362276167,1748143847152,-430.0,0.00019178,2]
[362276168,1748143847163,-430.0,0.00019178,2]
[362276169,1748143847174,-430.0,0.00019178,2]
[362276170,1748143847184,-501.66236258,0.00019178,2]
[362276171,1748143847199,-430.0,0.00019178,2]
[362276172,1748143847210,-430.0,0.00019178,2]
[362276173,1748143847220,-501.09436803,0.00019178,2]
[362276174,1748143847231,-1908.69,0.00019178,2]
[362276175,1748143847241,-1135.82,0.00019178,2]
[362276176,1748143847251,-430.0,0.00019178,2]
[362276177,1748143847261,-430.0,0.00019178,2]
[362276178,1748143847272,-430.0,0.00019178,2]
[362276179,1748143847282,-2322.92,0.00019178,2]
[362276180,1748143847291,-433.07637525,0.00019178,2]
[362276181,1748143847301,-1329.84,0.00019178,2]
[362276182,1748143847310,-430.0,0.00019178,2]
[362276183,1748143847321,-430.0,0.00019178,2]
[362276184,1748143847331,-430.0,0.00019178,2]
[362276185,1748143847343,-441.17366482,0.00019178,2]
[362276186,1748143847354,-430.0,0.00019178,2]
[362276187,1748143847364,-594.31,0.00019178,2]
[362276188,1748143847374,-432.98307126,0.00019178,2]
[362276189,1748143847385,-430.0,0.00019178,2]
[362276190,1748143847395,-1371.14,0.00019178,2]
[362276191,1748143847407,-430.0,0.00019178,2]
[362276192,1748143847416,-430.0,0.00019178,2]
[362276193,1748143847426,-436.49164404,0.00019178,2]
[362276194,1748143847436,-430.0,0.00019178,2]
[362276195,1748143847447,-821.15,0.00019178,2]
[362276196,1748143847457,-447.13,0.00019178,2]
[362276197,1748143847467,-922.23,0.00019178,2]
[362276198,1748143847477,-430.0,0.00019178,2]
[362276199,1748143847487,-1631.62,0.00019178,2]
[362276200,1748143847496,-271.44536503,0.00019178,2]
[362276201,1748143847506,-835.87,0.00019178,2]
[362276202,1748143847515,-430.08540778,0.00019178,2]
[362276203,1748143847526,-195.870947,0.00019178,2]
[362276204,1748143847535,-250.59701144,0.00019206,2]
[362276205,1748143847546,-613.105548,0.00019321,2]
[362276206,1748143847556,-282.82926234,0.00019452,2]
[362276207,1748143847566,-430.0,0.00019452,2]
[362276208,1748143847575,-482.43958677,0.00019452,2]
[362276209,1748143847585,-430.0,0.00019452,2]
[362276210,1748143847594,-430.0,0.00019452,2]
[362276211,1748143847604,-446.64200255,0.00019452,2]
[362276212,1748143847613,-226.5,0.00019452,2]
[362276213,1748143847622,-430.0,0.00019452,2]
[362276214,1748143847631,-430.0,0.00019452,2]
[362276215,1748143847640,-430.0,0.00019452,2]
[362276216,1748143847649,-430.0,0.00019452,2]
[362276217,1748143847659,-395.86289653,0.00019452,2]
[362276218,1748143847668,-430.0,0.00019452,2]
[362276219,1748143847678,-430.0,0.00019452,2]
[362276220,1748143847687,-500.0,0.00019452,2]
[362276221,1748143847697,-436.34,0.00019452,2]
[362276222,1748143847708,-1067.63,0.00019452,2]
[362276223,1748143847718,-534.34084743,0.00019452,2]
[362276224,1748143847728,-430.0,0.00019452,2]
[362276225,1748143847737,-445.72146156,0.00019452,2]
[362276226,1748143847976,-117.00853844,0.00019452,2]
[362276227,1748143847986,-647.16,0.00019452,2]
[362276228,1748143847995,-430.0,0.00019452,2]
[362276229,1748143848004,-430.0,0.00019452,2]
[362276230,1748143848014,-487.64,0.00019452,2]
[362276231,1748143848023,-471.93,0.00019452,2]
[362276232,1748143848032,-1983.66,0.00019452,2]
[362276233,1748143848041,-430.0,0.00019452,2]
[362276234,1748143848050,-430.0,0.00019452,2]
[362276235,1748143848063,-781.99,0.00019452,2]
[362276236,1748143848072,-430.0,0.00019452,2]
[362276237,1748143848081,-369.53613733,0.00019452,2]
[362276241,1748144156422,500.0,0.00021917,30]
[362276242,1748144156495,500.0,0.00021917,30]
[362276243,1748144156730,500.0,0.00021917,30]
[362276244,1748144157336,500.0,0.00021917,30]
[362276245,1748144157592,500.0,0.00021917,30]
[362276246,1748144157848,500.0,0.00021917,30]
[362276247,1748144158070,500.0,0.00021917,30]
[362276248,1748144158296,500.0,0.00021917,30]
[362276249,1748144158548,500.0,0.00021917,30]
[362276250,1748144158780,500.0,0.00021917,30]
[362276251,1748144159029,500.0,0.00021917,30]
[362276252,1748144159279,500.0,0.00021917,30]
[362276253,1748144159541,500.0,0.00021917,30]
[362276254,1748144159810,500.0,0.00021917,30]
[362276255,1748144160052,500.0,0.00021917,30]
[362276256,1748144160301,500.0,0.00021917,30]
[362276257,1748144160554,500.0,0.00021917,30]
[362276258,1748144160799,500.0,0.00021917,30]
[362276259,1748144161383,210.99384558,0.00021917,30]
[362276261,1748144285095,171.639204,0.00013699,2]
[362276320,1748145032485,-8594.3464196,0.00018144,2]
[362276322,1748145032495,-165.532573,0.00018351,2]
[362276324,1748145032505,-165.532573,0.00018442,2]
[362276326,1748145032514,-157.826064,0.00018625,2]
[362276328,1748145032526,-207.4,0.00019166,2]
[362276330,1748145032536,-300.0,0.00019175,2]
[362276332,1748145032546,-300.0,0.00019177,2]
[362276333,1748145032556,-300.0,0.00019177,2]
[362276335,1748145032565,-509.25962532,0.00019178,2]
[362276336,1748145032574,-430.0,0.00019178,2]
[362276339,1748145032583,-430.0,0.00019178,2]
[362276341,1748145032593,-500.0,0.00019178,2]
[362276342,1748145032602,-430.0,0.00019178,2]
[362276343,1748145032611,-430.0,0.00019178,2]
[362276344,1748145032621,-430.0,0.00019178,2]
[362276345,1748145032630,-430.0,0.00019178,2]
[362276346,1748145032640,-430.0,0.00019178,2]
[362276347,1748145032651,-175.87836269,0.00019178,2]
[362276360,1748145038465,-300.0,0.00019176,2]
[362276361,1748145038477,-254.12163731,0.00019178,2]
[362276362,1748145038487,-430.0,0.00019178,2]
[362276363,1748145038498,-447.0,0.00019178,2]
[362276364,1748145038507,-1818.36,0.00019178,2]
[362276365,1748145038517,-544.8925101,0.00019178,2]
[362276366,1748145038577,-48.3374899,0.00019178,2]
[362276367,1748145038586,-430.0,0.00019178,2]
[362276368,1748145038596,-84.4501412,0.00019178,2]
[362276369,1748145038607,-345.5498588,0.00019178,2]
[362276370,1748145038617,-622.49,0.00019178,2]
[362276371,1748145038627,-430.0,0.00019178,2]
[362276372,1748145038636,-432.61,0.00019178,2]
[362276373,1748145038646,-1292.43,0.00019178,2]
[362276374,1748145038655,-430.0,0.00019178,2]
[362276375,1748145038664,-252.73795485,0.00019178,2]
[362276376,1748145038676,-177.26204515,0.00019178,2]
[362276377,1748145038685,-430.0,0.00019178,2]
[362276378,1748145038695,-1133.05,0.00019178,2]
[362276379,1748145038705,-430.0,0.00019178,2]
[362276380,1748145038714,-716.83,0.00019178,2]
[362276381,1748145038724,-430.0,0.00019178,2]
[362276382,1748145038733,-430.0,0.00019178,2]
[362276383,1748145038743,-430.0,0.00019178,2]
[362276384,1748145038753,-430.0,0.00019178,2]
[362276385,1748145038762,-430.0,0.00019178,2]
[362276386,1748145038772,-321.09467004,0.00019178,2]
[362276768,1748145044866,-1275.39532996,0.00019178,2]
[362276769,1748145044876,-430.0,0.00019178,2]
[362276770,1748145044885,-430.0,0.00019178,2]
[362276771,1748145044895,-430.0,0.00019178,2]
[362276772,1748145044905,-462.51408139,0.00019178,2]
[362276773,1748145044914,-430.0,0.00019178,2]
[362276774,1748145044924,-431.42,0.00019178,2]
[362276775,1748145044933,-430.0,0.00019178,2]
[362276777,1748145045078,-430.0,0.00019178,2]
[362276778,1748145045089,-430.0,0.00019178,2]
[362276779,1748145045099,-1013.92,0.00019178,2]
[362276780,1748145045110,-430.0,0.00019178,2]
[362276781,1748145045120,-1847.08,0.00019178,2]
[362276782,1748145045130,-430.0,0.00019178,2]
[362276783,1748145045140,-440.99112872,0.00019178,2]
[362276784,1748145045151,-430.0,0.00019178,2]
[362276785,1748145045161,-430.0,0.00019178,2]
[362276786,1748145045171,-1088.49,0.00019178,2]
[362276787,1748145045180,-2260.12,0.00019178,2]
[362276788,1748145045190,-385.04879985,0.00019178,2]
[362276789,1748145045200,-430.0,0.00019178,2]
[362276790,1748145045211,-1292.85,0.00019178,2]
[362276791,1748145045220,-430.0,0.00019178,2]
[362276792,1748145045230,-464.98331165,0.00019178,2]
[362276793,1748145045239,-1314.01,0.00019178,2]
[362276794,1748145045249,-430.0,0.00019178,2]
[362276795,1748145045259,-430.0,0.00019178,2]
[362276796,1748145045269,-430.0,0.00019178,2]
[362276797,1748145045278,-569.55,0.00019178,2]
[362276798,1748145045289,-430.0,0.00019178,2]
[362276799,1748145045302,-430.0,0.00019178,2]
[362276800,1748145045312,-430.0,0.00019178,2]
[362276801,1748145045321,-786.94,0.00019178,2]
[362276802,1748145045332,-883.8,0.00019178,2]
[362276803,1748145045343,-1590.52,0.00019178,2]
[362276804,1748145045356,-801.05,0.00019178,2]
[362276805,1748145045365,-430.0,0.00019178,2]
[362276806,1748145045374,-443.89532099,0.00019178,2]
[362276807,1748145045384,-515.84,0.00019178,2]
[362276808,1748145045393,-978.66,0.00019178,2]
[362276809,1748145045404,-430.0,0.00019178,2]
[362276810,1748145045414,-551.794993,0.00019321,2]
[362276811,1748145045424,-327.6885645,0.000194,2]
[362276812,1748145045434,-160.9233811,0.000194,2]
[362276813,1748145045447,-308.1025348,0.000194,2]
[362276814,1748145045460,-571.6513513,0.000194,2]
[362276815,1748145045470,-571.6513513,0.000194,2]
[362276816,1748145045481,-158.2750078,0.000194,2]
[362276817,1748145045491,-176.2038764,0.000194,2]
[362276818,1748145045500,-158.2750078,0.000194,2]
[362276819,1748145045512,-571.6513513,0.000194,2]
[362276820,1748145045522,-176.2038764,0.000194,2]
[362276821,1748145045532,-571.6513513,0.000194,2]
[362276822,1748145045542,-158.2750078,0.000194,2]
[362276823,1748145045551,-176.2038764,0.000194,2]
[362276824,1748145045561,-198.11,0.00019451,2]
[362276825,1748145045571,-430.0,0.00019452,2]
[362276826,1748145045583,-430.0,0.00019452,2]
[362276827,1748145045592,-500.0,0.00019452,2]
[362276828,1748145045603,-430.0,0.00019452,2]
[362276829,1748145045614,-430.0,0.00019452,2]
[362276830,1748145045623,-430.0,0.00019452,2]
[362276831,1748145045635,-430.0,0.00019452,2]
[362276832,1748145045646,-430.0,0.00019452,2]
[362276833,1748145045657,-151.0,0.00019452,2]
[362276834,1748145045668,-151.0,0.00019452,2]
[362276835,1748145045677,-151.420759,0.00019452,2]
[362276836,1748145045688,-430.0,0.00019452,2]
[362276837,1748145045698,-430.0,0.00019452,2]
[362276838,1748145045709,-447.0,0.00019452,2]
[362276839,1748145045719,-1818.36,0.00019452,2]
[362276840,1748145045730,-593.23,0.00019452,2]
[362276841,1748145045741,-430.0,0.00019452,2]
[362276842,1748145045752,-430.0,0.00019452,2]
[362276843,1748145045763,-154.184052,0.00019452,2]
[362276844,1748145045774,-622.49,0.00019452,2]
[362276845,1748145045783,-430.0,0.00019452,2]
[362276846,1748145045792,-432.61,0.00019452,2]
[362276847,1748145045803,-1292.43,0.00019452,2]
[362276848,1748145045813,-430.0,0.00019452,2]
[362276849,1748145045824,-400.6395,0.00019452,2]
[362276851,1748145045834,-517.25508792,0.00019452,2]
[362276852,1748145045843,-1133.05,0.00019452,2]
[362276853,1748145045853,-430.0,0.00019452,2]
[362276854,1748145045863,-716.83,0.00019452,2]
[362276855,1748145045873,-430.0,0.00019452,2]
[362276856,1748145045882,-430.0,0.00019452,2]
[362276857,1748145045892,-430.0,0.00019452,2]
[362276858,1748145045902,-151.0,0.00019452,2]
[362276859,1748145045911,-430.0,0.00019452,2]
[362276861,1748145045920,-430.0,0.00019452,2]
[362276862,1748145045930,-1596.49,0.00019452,2]
[362276864,1748145045939,-430.0,0.00019452,2]
[362276866,1748145045949,-430.0,0.00019452,2]
[362276868,1748145045959,-430.0,0.00019452,2]
[362276869,1748145045969,-431.42,0.00019452,2]
[362276870,1748145045979,-290.608998,0.00019452,2]
[362276871,1748145045988,-430.0,0.00019452,2]
[362276872,1748145045998,-401.53332796,0.00019452,2]
[362276873,1748145046008,-430.0,0.00019452,2]
[362276874,1748145046019,-1013.92,0.00019452,2]
[362276875,1748145046029,-430.0,0.00019452,2]
[362276876,1748145046039,-1847.08,0.00019452,2]
[362276877,1748145046049,-430.0,0.00019452,2]
[362276878,1748145046060,-432.36079974,0.00019452,2]
[362276879,1748145046071,-492.42747307,0.00019452,2]
[362276880,1748145046087,-1088.49,0.00019452,2]
[362276881,1748145046098,-2260.12,0.00019452,2]
[362276882,1748145046109,-430.0,0.00019452,2]
[362276883,1748145046119,-1292.85,0.00019452,2]
[362276884,1748145046129,-430.0,0.00019452,2]
[362276885,1748145046139,-1314.01,0.00019452,2]
[362276886,1748145046149,-430.0,0.00019452,2]
[362276887,1748145046159,-430.0,0.00019452,2]
[362276888,1748145046169,-430.0,0.00019452,2]
[362276889,1748145046179,-569.55,0.00019452,2]
[362276890,1748145046188,-430.0,0.00019452,2]
[362276891,1748145046198,-354.79224484,0.00019452,2]
[362276898,1748145046857,-75.20775516,0.00019452,2]
[362276899,1748145046867,-430.0,0.00019452,2]
[362276900,1748145046876,-325.43174484,0.00019452,2]
[362276902,1748145347173,163.057243,0.00013699,2]
[362276908,1748146059349,200.0,0.00021917,30]
[362276934,1748146232514,-849.27394424,0.00018211,2]
[362276936,1748146232531,-2121.25695784,0.00018211,2]
[362276940,1748146232564,-1115.51770175,0.00018211,2]
[362276949,1748146232673,-5446.91999997,0.00018211,2]
[362276951,1748146232683,-151.00000003,0.00018435,2]
[362277182,1748146238529,-6.82606397,0.00018435,2]
[362277183,1748146238539,-300.0,0.00018918,2]
[362277184,1748146238549,-1016.75987781,0.00018922,2]
[362277185,1748146238558,-207.4,0.00019166,2]
[362277186,1748146238568,-300.0,0.00019177,2]
[362277187,1748146238578,-500.0,0.00019178,2]
[362277188,1748146238587,-430.0,0.00019178,2]
[362277189,1748146238596,-430.0,0.00019178,2]
[362277190,1748146238606,-555.16257092,0.00019178,2]
[362277191,1748146238616,-430.0,0.00019178,2]
[362277192,1748146238625,-430.0,0.00019178,2]
[362277193,1748146238635,-430.0,0.00019178,2]
[362277194,1748146238644,-65.00270194,0.00019178,2]
[362277195,1748146238656,-364.99729806,0.00019178,2]
[362277196,1748146238665,-430.0,0.00019178,2]
[362277197,1748146238674,-767.67,0.00019178,2]
[362277198,1748146238683,-494.34,0.00019178,2]
[362277199,1748146238697,-937.88,0.00019178,2]
[362277200,1748146238707,-1666.83,0.00019178,2]
[362277201,1748146238718,-430.0,0.00019178,2]
[362277202,1748146238729,-430.0,0.00019178,2]
[362277203,1748146238740,-430.0,0.00019178,2]
[362277204,1748146238751,-543.79,0.00019178,2]
[362277205,1748146238761,-430.0,0.00019178,2]
[362277206,1748146238770,-430.0,0.00019178,2]
[362277207,1748146238780,-430.0,0.00019178,2]
[362277208,1748146238791,-430.0,0.00019178,2]
[362277209,1748146238802,-657.09,0.00019178,2]
[362277210,1748146238813,-430.0,0.00019178,2]
[362277211,1748146238824,-570.61,0.00019178,2]
[362277212,1748146238839,-430.0,0.00019178,2]
[362277213,1748146238851,-456.7367056,0.00019178,2]
[362277214,1748146238860,-1248.6,0.00019178,2]
[362277215,1748146238870,-430.0,0.00019178,2]
[362277216,1748146238880,-430.0,0.00019178,2]
[362277217,1748146238890,-1150.32,0.00019178,2]
[362277218,1748146238899,-430.0,0.00019178,2]
[362277219,1748146238910,-430.0,0.00019178,2]
[362277220,1748146238919,-309.63324943,0.00019178,2]
[362277221,1748146238928,-432.89631006,0.00019178,2]
[362277222,1748146238938,-430.0,0.00019178,2]
[362277223,1748146238947,-430.0,0.00019178,2]
[362277224,1748146238956,-430.0,0.00019178,2]
[362277225,1748146238966,-430.0,0.00019178,2]
[362277226,1748146238975,-1572.11,0.00019178,2]
[362277227,1748146238984,-929.43,0.00019178,2]
[362277228,1748146238993,-1015.7,0.00019178,2]
[362277229,1748146239002,-430.0,0.00019178,2]
[362277230,1748146239011,-1773.35,0.00019178,2]
[362277231,1748146239020,-449.24735018,0.00019178,2]
[362277232,1748146239030,-462.9035388,0.00019178,2]
[362277233,1748146239039,-430.0,0.00019178,2]
[362277234,1748146239048,-430.0,0.00019178,2]
[362277235,1748146239058,-522.09,0.00019178,2]
[362277236,1748146239068,-2206.16,0.00019178,2]
[362277237,1748146239078,-529.78259397,0.00019178,2]
[362277238,1748146239088,-1256.78,0.00019178,2]
[362277239,1748146239099,-430.0,0.00019178,2]
[362277240,1748146239110,-430.0,0.00019178,2]
[362277241,1748146239121,-430.0,0.00019178,2]
[362277242,1748146239131,-430.0,0.00019178,2]
[362277243,1748146239141,-452.75569905,0.00019178,2]
[362277244,1748146239152,-430.0,0.00019178,2]
[362277245,1748146239162,-740.59,0.00019178,2]
[362277246,1748146239172,-846.98,0.00019178,2]
[362277247,1748146239181,-434.61743658,0.00019178,2]
[362277266,1748146240732,-829.73256342,0.00019178,2]
[362277268,1748146240741,-1617.62,0.00019178,2]
[362277270,1748146240751,-432.1844074,0.00019178,2]
[362277272,1748146240762,-430.0,0.00019178,2]
[362277274,1748146240771,-430.0,0.00019178,2]
[362277276,1748146240786,-590.3879468,0.0001925,2]
[362277278,1748146240795,-158.2750078,0.000193,2]
[362277280,1748146240815,-571.6513513,0.000193,2]
[362277282,1748146240824,-572.9548233,0.000193,2]
[362277284,1748146240849,-496.615494,0.00019321,2]
[362277286,1748146240866,-301.84234257,0.00019351,2]
[362277288,1748146240878,-500.0,0.0001945,2]
[362277290,1748146240887,-500.0,0.0001945,2]
[362277292,1748146240896,-500.0,0.0001945,2]
[362277294,1748146240906,-367.12694755,0.0001945,2]
[362277296,1748146240920,-405.43703778,0.0001945,2]
[362277298,1748146240935,-500.0,0.0001945,2]
[362277300,1748146240945,-500.0,0.0001945,2]
[362277302,1748146240954,-500.0,0.0001945,2]
[362277304,1748146240962,-509.50758972,0.0001945,2]
[362277306,1748146240971,-189.85,0.00019451,2]
[362277308,1748146240981,-594.76382951,0.00019452,2]
[362277310,1748146240993,-430.0,0.00019452,2]
[362277312,1748146241003,-430.0,0.00019452,2]
[362277314,1748146241013,-430.0,0.00019452,2]
[362277316,1748146241023,-430.0,0.00019452,2]
[362277318,1748146241032,-430.0,0.00019452,2]
[362277320,1748146241041,-430.0,0.00019452,2]
[362277322,1748146241050,-430.0,0.00019452,2]
[362277324,1748146241060,-767.67,0.00019452,2]
[362277326,1748146241070,-937.88,0.00019452,2]
[362277328,1748146241079,-1666.83,0.00019452,2]
[362277330,1748146241089,-430.0,0.00019452,2]
[362277332,1748146241100,-430.0,0.00019452,2]
[362277334,1748146241121,-430.0,0.00019452,2]
[362277336,1748146241152,-543.79,0.00019452,2]
[362277338,1748146241161,-430.0,0.00019452,2]
[362277340,1748146241170,-430.0,0.00019452,2]
[362277342,1748146241180,-430.0,0.00019452,2]
[362277345,1748146241189,-183.84040149,0.00019452,2]
[362277347,1748146241198,-657.09,0.00019452,2]
[362277349,1748146241208,-430.0,0.00019452,2]
[362277351,1748146241217,-570.61,0.00019452,2]
[362277353,1748146241226,-430.0,0.00019452,2]
[362277355,1748146241236,-151.0,0.00019452,2]
[362277357,1748146241245,-1248.6,0.00019452,2]
[362277359,1748146241254,-430.0,0.00019452,2]
[362277361,1748146241264,-430.0,0.00019452,2]
[362277363,1748146241273,-1150.32,0.00019452,2]
[362277365,1748146241282,-430.0,0.00019452,2]
[362277367,1748146241292,-430.0,0.00019452,2]
[362277369,1748146241301,-519.80032308,0.00019452,2]
[362277371,1748146241311,-430.0,0.00019452,2]
[362277372,1748146241320,-1572.11,0.00019452,2]
[362277374,1748146241330,-929.43,0.00019452,2]
[362277377,1748146241339,-1015.7,0.00019452,2]
[362277379,1748146241349,-430.0,0.00019452,2]
[362277381,1748146241358,-1773.35,0.00019452,2]
[362277383,1748146241368,-430.0,0.00019452,2]
[362277385,1748146241378,-296.88961821,0.00019452,2]
[362277387,1748146241387,-522.09,0.00019452,2]
[362277389,1748146241396,-2206.16,0.00019452,2]
[362277391,1748146241406,-1256.78,0.00019452,2]
[362277393,1748146241415,-430.0,0.00019452,2]
[362277394,1748146241424,-430.0,0.00019452,2]
[362277397,1748146241434,-430.0,0.00019452,2]
[362277398,1748146241444,-430.0,0.00019452,2]
[362277400,1748146241454,-430.0,0.00019452,2]
[362277403,1748146241463,-740.59,0.00019452,2]
[362277404,1748146241473,-846.98,0.00019452,2]
[362277406,1748146241482,-1264.35,0.00019452,2]
[362277408,1748146241492,-1617.62,0.00019452,2]
[362277410,1748146241502,-430.0,0.00019452,2]
[362277413,1748146241512,-430.0,0.00019452,2]
[362277414,1748146241522,-924.47485564,0.00019616,2]
[362277416,1748146241531,-251.1,0.000197,2]
[362277419,1748146241541,-151.0,0.00019715,2]
[362277421,1748146241550,-151.0,0.00019715,2]
[362277423,1748146241559,-151.0,0.00019715,2]
[362277425,1748146241567,-151.0,0.00019715,2]
[362277427,1748146241576,-160.0,0.00019715,2]
[362277429,1748146241585,-34449.95144882,0.00019716,3]
[362277607,1748146244105,-430.0,0.00019178,2]
[362277608,1748146244115,-430.0,0.00019452,2]
[362277609,1748146244125,-151.0,0.00019715,2]
[362277610,1748146244134,-31.42050752,0.00019716,3]
[362277611,1748146244146,-421.83972121,0.00019716,3]
[362277620,1748146502915,506.0,0.00021918,30]
[362277621,1748146743891,171.231281,0.00013699,2]
[362277624,1748147035465,5000.0,0.00024657,120]
[362277668,1748147437660,-576.66414437,0.000182,2]
[362278026,1748147445832,-415.78701472,0.000182,2]
[362278027,1748147445842,-2597.2716042,0.00018269,2]
[362278028,1748147445853,-266.608286,0.00018337,2]
[362278029,1748147445862,-745.4560624,0.00018406,2]
[362278030,1748147445872,-207.4,0.00019166,2]
[362278031,1748147445881,-300.0,0.00019177,2]
[362278032,1748147445890,-300.0,0.00019177,2]
[362278033,1748147445899,-430.0,0.00019178,2]
[362278034,1748147445908,-430.0,0.00019178,2]
[362278035,1748147445918,-430.0,0.00019178,2]
[362278036,1748147445927,-506.17206728,0.00019178,2]
[362278037,1748147445939,-430.0,0.00019178,2]
[362278038,1748147445952,-430.0,0.00019178,2]
[362278039,1748147445962,-440.55603492,0.00019178,2]
[362278040,1748147445971,-430.0,0.00019178,2]
[362278041,1748147445980,-430.0,0.00019178,2]
[362278042,1748147445989,-447.03456836,0.00019178,2]
[362278043,1748147445998,-430.0,0.00019178,2]
[362278044,1748147446008,-430.0,0.00019178,2]
[362278046,1748147446017,-430.0,0.00019178,2]
[362278047,1748147446028,-188.36077631,0.00019178,2]
[362278048,1748147446039,-430.0,0.00019178,2]
[362278049,1748147446050,-430.0,0.00019178,2]
[362278050,1748147446060,-430.0,0.00019178,2]
[362278051,1748147446071,-430.0,0.00019178,2]
[362278052,1748147446082,-23.36072336,0.00019178,2]
[362278053,1748147446095,-476.63927664,0.00019178,2]
[362278054,1748147446105,-104.52890503,0.00019178,2]
[362278055,1748147446118,-369.22109497,0.00019178,2]
[362278056,1748147446128,-430.0,0.00019178,2]
[362278057,1748147446138,-450.0,0.00019178,2]
[362278058,1748147446148,-430.0,0.00019178,2]
[362278059,1748147446157,-430.0,0.00019178,2]
[362278060,1748147446166,-247.00701249,0.00019178,2]
[362278061,1748147446176,-430.0,0.00019178,2]
[362278062,1748147446185,-523.06,0.00019178,2]
[362278063,1748147446199,-498.48,0.00019178,2]
[362278064,1748147446210,-602.33,0.00019178,2]
[362278065,1748147446219,-200.0,0.00019178,2]
[362278066,1748147446230,-430.0,0.00019178,2]
[362278067,1748147446240,-1144.55,0.00019178,2]
[362278068,1748147446250,-430.0,0.00019178,2]
[362278069,1748147446260,-399.91165502,0.00019178,2]